{"text_format":"1","workbook":"xlsx","n_sheets":4,"sheets":["報告書","許可業者一覧","リスト","メモ"],"not_rendered":{"charts":0,"images":0,"macros":1,"external_links":0,"defined_names":2,"comments":1,"pivot_tables":0},"unopened":[],"bounds":{"document_bytes":16777216,"sheet_cells":100000,"rows_first":2000,"rows_last":500,"rows_between":2000,"halvings":0,"cell_chars":16384,"cell_head_chars":4096},"cells_cut":0,"cells_raw":0,"read":"whole","date_system":"1900"}

{"sheet":"報告書","index":0,"n_rows":39,"n_cols":35,"rows_kept":39,"cut":false,"hidden":false,"merged":[[4,24,4,25],[6,7,6,11],[2,34,2,37],[3,34,3,37],[30,5,31,10],[24,15,25,17],[26,15,27,17],[28,15,29,17],[30,15,31,17],[22,18,23,18],[24,18,25,18],[26,18,27,18],[28,18,29,18],[30,18,31,18],[14,22,14,31],[30,14,31,14],[7,22,7,24],[10,19,10,21],[10,22,10,24],[13,22,13,24],[11,22,11,31],[19,26,21,32],[19,19,21,25],[20,15,21,18],[20,11,21,14],[19,11,19,18],[22,15,23,17],[34,26,35,32],[22,19,23,25],[24,19,25,25],[26,19,27,25],[28,19,29,25],[30,19,31,25],[22,26,23,32],[24,26,25,32],[26,26,27,32],[28,26,29,32],[30,26,31,32],[32,19,33,25],[38,5,41,10],[38,11,39,14],[40,11,41,14],[34,19,35,25],[32,26,33,32],[40,26,41,32],[38,26,39,32],[40,19,41,25],[36,19,37,25],[36,26,37,32],[38,19,39,25],[40,15,41,18],[38,15,39,18],[36,15,37,17],[34,5,35,10],[34,14,35,14],[1,5,1,10],[22,14,23,14],[24,14,25,14],[26,14,27,14],[28,14,29,14],[22,11,23,13],[24,11,25,13],[26,11,27,13],[28,11,29,13],[16,7,16,8],[19,5,21,10],[22,5,23,10],[24,5,25,10],[26,5,27,10],[28,5,29,10],[3,12,3,24],[5,34,7,37],[32,5,33,10],[32,11,33,13],[32,14,33,14],[36,5,37,10],[36,14,37,14],[32,18,33,18],[34,18,35,18],[36,18,37,18],[34,11,35,13],[36,11,37,13],[32,15,33,17],[34,15,35,17],[30,11,31,13],[12,22,12,31],[8,22,9,31]]}
[]
[null,null,null,null,null,"様式第13号（第13条関係）"]
[null,null,null,null,null,null,null,null,null,null,null,null,null,null,null,null,null,null,null,null,null,null,null,null,null,null,null,null,null,null,null,null,null,null,"許可番号"]
[null,null,null,null,null,null,null,null,null,null,null,null,"一般廃棄物処理業業務報告書"]
[null,null,null,null,null,null,null,null,null,null,null,null,null,null,null,null,null,null,null,null,null,null,null,null,"令和",null,null,"年",null,"月",null,"日"]
[]
[null,null,null,null,null,null,null,"（宛先）静岡市長"]
[null,null,null,null,null,null,null,null,null,null,null,null,null,null,null,null,null,null,null,null,null,null,"住　　所"]
[null,null,null,null,null,null,null,null,null,null,null,null,null,null,null,null,null,null,null,null,null,null,{"$f":"IF(AI4=\"\",\"\",IFERROR(VLOOKUP(AI4,許可業者一覧!$B$3:$G$91,4,FALSE),\"許可番号が間違っています\"))","v":""}]
[]
[null,null,null,null,null,null,null,null,null,null,null,null,null,null,null,null,null,null,null,"報告者",null,null,"氏　　名"]
[null,null,null,null,null,null,null,null,null,null,null,null,null,null,null,null,null,null,null,null,null,null,{"$f":"IF(AI4=\"\",\"\",IFERROR(VLOOKUP(AI4,許可業者一覧!$B$3:$G$91,2,FALSE),\"許可番号が間違っています\"))","v":""}]
[null,null,null,null,null,null,null,null,null,null,null,null,null,null,null,null,null,null,null,null,null,null,{"$f":"IF(AI4=\"\",\"\",IFERROR(VLOOKUP(AI4,許可業者一覧!$B$3:$G$91,5,FALSE),\"許可番号が間違っています\"))","v":""}]
[null,null,null,null,null,null,null,null,null,null,null,null,null,null,null,null,null,null,null,null,null,null,"電場番号"]
[null,null,null,null,null,null,null,null,null,null,null,null,null,null,null,null,null,null,null,null,null,null,{"$f":"IF(AI4=\"\",\"\",IFERROR(VLOOKUP(AI4,許可業者一覧!$B$3:$G$91,6,FALSE),\"許可番号が間違っています\"))","v":""}]
[]
[null,null,null,null,null,null,null,null,null,"年",null,"月分の業務状況について、静岡市廃棄物の処理及び清掃に関する規則第13"]
[null,null,null,null,null,null,null,"条の規定により次のとおり報告します。"]
[]
[null,null,null,null,null,"一般廃棄物の種類",null,null,null,null,null,"数　　　　　　　　　量",null,null,null,null,null,null,null,"処　　分　の　方　法",null,null,null,null,null,null,"処　分　の　場　所"]
[null,null,null,null,null,null,null,null,null,null,null,"収集運搬",null,null,null,"処　　分"]
[]
[null,null,null,null,null,null,null,null,null,null,null,null,null,null,{"$f":"IFERROR(VLOOKUP(F23,リスト!$C$5:$E$16,3,FALSE),\"\")","v":""},null,null,null,{"$f":"IFERROR(VLOOKUP(F23,リスト!$C$5:$E$16,3,FALSE),\"\")","v":""}]
[]
[null,null,null,null,null,null,null,null,null,null,null,null,null,null,{"$f":"IFERROR(VLOOKUP(F25,リスト!$C$5:$E$16,3,FALSE),\"\")","v":""},null,null,null,{"$f":"IFERROR(VLOOKUP(F25,リスト!$C$5:$E$16,3,FALSE),\"\")","v":""}]
[]
[null,null,null,null,null,null,null,null,null,null,null,null,null,null,{"$f":"IFERROR(VLOOKUP(F27,リスト!$C$5:$E$16,3,FALSE),\"\")","v":""},null,null,null,{"$f":"IFERROR(VLOOKUP(F27,リスト!$C$5:$E$16,3,FALSE),\"\")","v":""}]
[]
[null,null,null,null,null,null,null,null,null,null,null,null,null,null,{"$f":"IFERROR(VLOOKUP(F29,リスト!$C$5:$E$16,3,FALSE),\"\")","v":""},null,null,null,{"$f":"IFERROR(VLOOKUP(F29,リスト!$C$5:$E$16,3,FALSE),\"\")","v":""}]
[]
[null,null,null,null,null,null,null,null,null,null,null,null,null,null,{"$f":"IFERROR(VLOOKUP(F31,リスト!$C$5:$E$16,3,FALSE),\"\")","v":""},null,null,null,{"$f":"IFERROR(VLOOKUP(F31,リスト!$C$5:$E$16,3,FALSE),\"\")","v":""}]
[]
[null,null,null,null,null,null,null,null,null,null,null,null,null,null,{"$f":"IFERROR(VLOOKUP(F33,リスト!$C$5:$E$16,3,FALSE),\"\")","v":""},null,null,null,{"$f":"IFERROR(VLOOKUP(F33,リスト!$C$5:$E$16,3,FALSE),\"\")","v":""}]
[]
[null,null,null,null,null,null,null,null,null,null,null,null,null,null,{"$f":"IFERROR(VLOOKUP(F35,リスト!$C$5:$E$16,3,FALSE),\"\")","v":""},null,null,null,{"$f":"IFERROR(VLOOKUP(F35,リスト!$C$5:$E$16,3,FALSE),\"\")","v":""}]
[]
[null,null,null,null,null,null,null,null,null,null,null,null,null,null,{"$f":"IFERROR(VLOOKUP(F37,リスト!$C$5:$E$16,3,FALSE),\"\")","v":""},null,null,null,{"$f":"IFERROR(VLOOKUP(F37,リスト!$C$5:$E$16,3,FALSE),\"\")","v":""}]
[]
[null,null,null,null,null,"し　尿　処　理　の\n状　　　　　　　況",null,null,null,null,null,"作業日数",null,null,null,"作　　　業\n延　人　員",null,null,null,"作　業　延　戸　数",null,null,null,null,null,null,"当 月 末 現 在 の\n受　 持　 戸　 数"]

{"sheet":"許可業者一覧","index":1,"n_rows":84,"n_cols":7,"rows_kept":84,"cut":false,"hidden":true,"merged":[]}
[]
[null,"許可番号","業者名","許可区分","住所","代表者","電話番号"]
[null,10002,"株式会社メンテックカンザイ","収集運搬","駿河区南町18番１号　サウスポット静岡４階","代表取締役　大滝　郁子","054-280-2677"]
[null,10003,"(一財)静岡市環境公社","収集運搬","静岡市葵区産女953番地","代表理事　櫻井　晴英","054-278-8161"]
[null,10004,"株式会社静岡清掃企業","収集運搬","静岡市葵区牧ケ谷2355番地","代表取締役　風間　幸郎","054-278-4643"]
[null,10005,"有限会社長嶋商店","収集運搬","静岡市葵区美川町４番５号","代表取締役　長嶋　捷治","054-271-2440"]
[null,10006,"株式会社岩本商店","収集運搬","静岡市葵区芝原25番地の34","代表取締役　岩本　匡史","054-247-1879"]
[null,10007,"株式会社荒井産業","収集運搬","静岡市清水区鳥坂1345番地","代表取締役　荒井　敬由","054-376-4025"]
[null,10008,"株式会社杉山","収集運搬","静岡市葵区慈悲尾288番地の１","代表取締役　望月　孝文","054-278-9990"]
[null,10009,"株式会社静岡資源","収集運搬","静岡市葵区富厚里1837番地の１","代表取締役　森　勝久","054-270-1153"]
[null,10010,"有限会社岩崎産業","収集運搬","静岡市葵区慈悲尾43番地の１","代表取締役社長　竹下　省三","054-278-5820"]
[null,10011,"有限会社前田商店","収集運搬","静岡市清水区庵原町139-4","取締役　勝山　篤","054-340-6002"]
[null,10012,"有限会社山崎商店","収集運搬","静岡市葵区南瀬名町６番３号","代表取締役　山崎　公士","054-265-2726"]
[null,10014,"有限会社ナガイクリーン","収集運搬","静岡市葵区芝原25-34","代表取締役　岩本　匡史","054-247-1922"]
[null,10015,"株式会社サンキュウ美化","収集運搬","静岡市葵区富厚里1891","代表取締役　山田　雅英","054-270-1160"]
[null,10018,"有限会社三津山商店","収集運搬","静岡市駿河区西平松17","代表取締役　三津山　利久","054-237-4257"]
[null,10019,"有限会社ヤマヒチ川崎商店","収集運搬","静岡市駿河区中島1536番地","代表取締役　川﨑　進一郎","054-285-8506"]
[null,10022,"フジテックス株式会社","収集運搬","静岡市清水区山原831番地の８","代表取締役　藤原　順哉","052-363-2488"]
[null,10023,"有限会社岩本商店","収集運搬","静岡市清水区高橋３丁目10番49号","代表取締役　川端　光世","054-367-0982"]
[null,10024,"株式会社エー・シー・ピー商事","収集運搬","静岡市清水区山原831番地の７","代表取締役　小笠原　英訓","054-364-3196"]
[null,10025,"角松商事有限会社","収集運搬","静岡市清水区吉原1033番地の１","代表取締役　角松　久資","054-368-1055"]
[null,10027,"株式会社エーシー・クルー","収集運搬","静岡市駿河区中島1440-1","代表取締役　赤池　徳昭","054-286-8885"]
[null,10028,"静岡クリーンサービス株式会社","収集運搬","静岡市清水区庵原町138番地の５","代表取締役　勝山　篤","054-366-2343"]
[null,10029,"有限会社清水清装","収集運搬","静岡市清水区大内783番地の１","代表取締役　岩辺　浩一","054-345-5209"]
[null,10030,"株式会社スギヤマ理工","収集運搬","静岡市清水区高橋1-15-18","代表取締役　杉山　桂介","054-363-6030"]
[null,10031,"株式会社総合美装ワタナベ","収集運搬","静岡市清水区長崎203-1","代表取締役　渡邉　孝雅","054-346-3103"]
[null,10032,"有限会社明成産業","収集運搬","静岡市清水区長崎542番地","代表取締役　石川　光夫","054-347-3955"]
[null,10034,"株式会社ハカマタ","収集運搬","静岡市駿河区中島217番地","代表取締役　鈴木　圭三","054-654-1008"]
[null,10035,"静岡ビルサービス株式会社","収集運搬","静岡市清水区草薙一丁目３番15号","代表取締役　大庭　武","054-344-5100"]
[null,10036,"ヤマダユニア株式会社","収集運搬","静岡市清水区上清水町３番19号","代表取締役　山田　恵","054-351-0567"]
[null,10037,"有限会社藤牧商店","収集運搬","静岡市清水区三保1376の２","取締役　平岡　一斗","054-335-8390"]
[null,10038,"有限会社深沢商店","収集運搬","静岡市清水区中河内903-4","代表取締役　深沢　登","054-396-3226"]
[null,10039,"丸徳商事有限会社","収集運搬、処分","静岡市清水区鳥坂575番地","代表取締役社長　松崎　徹志","054-345-5173"]
[null,10040,"有限会社マルシン商会","収集運搬","静岡市清水区折戸三丁目1227番地の20","代表取締役　新倉　一寿","054-335-9081"]
[null,10041,"株式会社三保サービス","収集運搬","静岡市清水区三保3490-1","代表取締役　今村　巌","054-335-4835"]
[null,10044,"有限会社ヤシマクリーンサービス","収集運搬","静岡市清水区小島町246-8","代表取締役　山本　達弘","054-393-3700"]
[null,10053,"イワオ商事有限会社","収集運搬","静岡市清水区鳥坂1656番地の５","代表取締役　遠藤　裕之","054-346-3758"]
[null,10054,"有限会社酒井商店","収集運搬","静岡市清水区大内116-3","代表取締役　前田　祐佐","054-346-7696"]
[null,10055,"有限会社ホソカワ商店","収集運搬","静岡市清水区西久保456-3","代表取締役　細川　歩久斗","054-365-8967"]
[null,10057,"株式会社クリーンコントロールサービス","収集運搬","富士市厚原道下17-1","代表取締役　竹田　哲士","0545-71-3848"]
[null,10058,"株式会社兼子","収集運搬","静岡市清水区興津中町990番地","代表取締役社長　兼子　卓三","054-369-1178"]
[null,10059,"岳陽産業有限会社","収集運搬","富士市川成島156番地の２","代表取締役　望月　茂","0545-61-1403"]
[null,10060,"有限会社大沼興業","収集運搬","静岡市清水区蒲原１番地の２","代表取締役　大沼　智","054-385-5967"]
[null,10062,"有限会社熊王産業","収集運搬","富士市五貫島891番地","代表取締役　熊王　紀夫","0545-64-4162"]
[null,10064,"安藤紙業株式会社","収集運搬","静岡市清水区蒲原一丁目８番37号","代表取締役　安藤　康将","054-369-2244"]
[null,10065,"有限会社東亜美装","収集運搬","富士市厚原131番地の１","代表取締役　宮本　信勇","0545-72-3300"]
[null,10066,"庵原興産有限会社","収集運搬","富士市中ノ郷3409番地の１","代表取締役　加藤　修","0545-85-3961"]
[null,10067,"株式会社山丈商事","収集運搬","静岡市清水区草ヶ谷27番地の14","代表取締役　宮崎　顯","054-371-9300"]
[null,10068,"丸永産業株式会社","収集運搬","静岡市清水区楠新田45-7","代表取締役　是永　彰吾","054-659-8349"]
[null,10069,"藤森工業株式会社","収集運搬","静岡市駿河区豊田二丁目９番17号","代表取締役　長島　十己知","054-286-0288"]
[null,10070,"株式会社ケーアイサービス","収集運搬","静岡市清水区柏尾208-1","代表取締役　岩辺　国男","054-347-3715"]
[null,10071,"伊藤商事株式会社","収集運搬","静岡市清水区袖師町1877番地の66","代表取締役　渥美　利弘","054-365-6565"]
[null,10101,"静岡ライフクリーン株式会社","収集運搬","静岡市駿河区丸子6935-4","代表取締役　鈴木　和子","054-259-0205"]
[null,10108,"有限会社アサヒクリーン","収集運搬","静岡市清水区八坂北二丁目１番１号２階","代表取締役　薩川　智香子","054-363-0338"]
[null,10109,"有限会社青葉総業","収集運搬","静岡市清水区長崎480番地","代表取締役　田中　龍𠮷","054-347-8900"]
[null,10110,"清水ライフクリーン株式会社","収集運搬","岡市清水区八坂北一丁目23番43号","代表取締役　山田　智也","054-366-4500"]
[null,10111,"株式会社スター環境メンテック","収集運搬","静岡市清水区横砂中町29番49号","代表取締役　加藤　泰明","054-363-5222"]
[null,10112,"有限会社第三企業","収集運搬","静岡市清水区駒越北町８番27号","代表取締役　惠比澤　教子","054-335-2183"]
[null,10113,"株式会社カンリ","収集運搬","静岡市駿河区広野一丁目３番１号","代表取締役　大髙　剛","054-259-9123"]
[null,10115,"有限会社市民衛生社","収集運搬","静岡市駿河区寿町７番１９号","代表取締役　丸山　博史","054-285-0383"]
[null,10116,"株式会社服部東海","収集運搬","静岡市葵区山崎一丁目４番地の28","代表取締役　岡本　眞由美","054-278-7737"]
[null,10117,"有限会社不二設備保全","収集運搬","富士市南松野2819番５","代表取締役　村上　智之","0545-85-0002"]
[null,10118,"有限会社蒲原工業","収集運搬","静岡市清水区蒲原５０１１番地の６９","代表取締役　千葉　久幸","054-385-3431"]
[null,10119,"有限会社由比環境保全センター","収集運搬","静岡市清水区由比77番地の２","代表取締役　八嶋　智徳","054-375-2453"]
[null,10120,"株式会社安倍環境","収集運搬","静岡市葵区山崎一丁目４番地の30","代表取締役　岡本　文一","054-278-5525"]
[null,10121,"大場　久仁夫(衛生総合センター)","収集運搬","静岡市葵区駒形通六丁目４番15号","大場　久仁夫","054-252-4940"]
[null,10202,"株式会社センズ石油","収集運搬","榛原郡川根本町東藤川699-4","代表取締役　神谷　功","0547-59-2110"]
[null,10203,"株式会社静岡環境保全センター","収集運搬","藤枝市高洲60番地の15","代表取締役　小林　国男","054-636-1511"]
[null,10204,"株式会社ヤマカ片野商店","収集運搬","焼津市惣右衛門119番地の１","代表取締役　片野　嘉男","054-623-3073"]
[null,10207,"株式会社アドバンス中部サービス","収集運搬","御前崎市宮内248番地の５","代表取締役　高瀬　晴康","0537-86-5847"]
[null,10209,"有限会社三峯商店","収集運搬","焼津市柳新屋４２９番地の５","代表取締役　森田　八千代","054-627-0334"]
[null,10214,"有限会社塚本興業","収集運搬","藤枝市谷稲葉435番地の１","代表取締役　塚本　貴生","054-644-1524"]
[null,10217,"有限会社ナオキ産業","収集運搬","焼津市吉永1242番地の２","代表取締役　半田　義雄","054-662-2000"]
[null,10219,"有限会社石山資源","収集運搬","焼津市石脇上599番地","代表取締役　石山　勝永","054-628-6812"]
[null,10220,"株式会社石川金市商店","収集運搬","焼津市中新田1461番地の１","代表取締役　渡辺　洋之","054-656-1560"]
[null,10221,"すずき資源株式会社","収集運搬","焼津市石津2204番地の７","代表取締役　鈴木　正法","054-623-1686"]
[null,10222,"環境のミカタ株式会社","収集運搬","焼津市上新田1019番地","代表取締役　渡辺　和良","054-622-1130"]
[null,20001,"企業組合動物の森","処分","静岡市葵区産女987番地の１","代表理事　小林　明美","054-276-0550"]
[null,20003,"宗教法人宗徳院","処分","静岡市清水区興津本町３６３番地","代表役員　松永　寛道","054-369-2244"]
[null,20004,"清水港木材産業協同組合","処分","静岡市清水区富士見町４番８号","代表理事　福島　覚","054-353-3231"]
[null,20005,"丸徳商事有限会社","収集運搬、処分","静岡市清水区鳥坂575番地","代表取締役社長　松崎　徹志","054-345-5173"]
[null,20007,"清水埠頭株式会社","処分","静岡市清水区清開三丁目５番40号","代表取締役　鈴木　健一郎","054-334-2333"]
[null,20008,"静岡チップ工業株式会社","処分","静岡市清水区長崎1042番地の11","代表取締役　妻形　博史","054-346-9611"]
[null,20009,"株式会社静岡西部建設","処分","静岡市駿河区青木188番地の３","代表取締役　梅原　義隆","054-259-1027"]

{"sheet":"リスト","index":2,"n_rows":16,"n_cols":9,"rows_kept":16,"cut":false,"hidden":true,"merged":[]}
[]
[]
[]
[null,null,"一般廃棄物の種類","備考","単位",null,null,"実績月","単位"]
[null,null,"※実績なし",null,null,null,null,1,"t"]
[null,null,"可燃ごみ",null,"t",null,null,2,"kl"]
[null,null,"多量一般家庭ごみ","可燃・不燃どちらも含む","t",null,null,3,"台"]
[null,null,"廃家電",null,"台",null,null,4,"基"]
[null,null,"資源ごみ(ﾋﾞﾝ,缶,故紙,ﾀﾞﾝﾎﾞｰﾙ)","ビン・缶・故紙・段ボール","t",null,null,5]
[null,null,"動物の死体","実験動物の死体を含む","t",null,null,6]
[null,null,"動植物性残渣","魚のあら","t",null,null,7]
[null,null,"再資源化品目（木くず等）",null,"t",null,null,8]
[null,null,"し尿",null,"kl",null,null,9]
[null,null,"浄化槽汚泥",null,"基",null,null,10]
[null,null,"浄化槽清掃基数",null,null,null,null,11]
[null,null,null,null,null,null,null,12]

{"sheet":"メモ","index":3,"n_rows":7,"n_cols":3,"rows_kept":7,"cut":false,"hidden":true,"merged":[]}
[]
[]
[]
[]
[null,null,"このエクセルをHPに載せる"]
[null,null,"LOGOで回答"]
[null,null,"会社情報（住所、代表者等）に変更があった場合、その都度エクセルを修正し、HPの載せてあるエクセルを差し替え"]